Cogmind - Beta 16 @@@ ROGUE MODE // 2025.12.04 @ 23:36:36 Player: Zonalar Result: Destroyed by KE-O9X(R) with Subdweller Laser Performance ------------- Evolutions (0) 0 Regions Visited (3) 600 Robots Destroyed (51) 255 Value Destroyed (793) 793 Prototype IDs (0) 0 Alien Tech Used (0) 0 Bonus (0) 0 TOTAL SCORE: 1648 Bonus ------- None Cogmind --------- Core Integrity 0/250 Matter 75/300 Energy 200/200 System Corruption 1% Temperature Cool (6) Movement Rolling (130) Ox2 Location -10/Subcaves Parts ------- > --- POWER (1) -------- Subdweller Power Source > --- PROPULSION (2) --- Subdweller Monowheel > --- UTILITY (2) ------ High-capacity Storage Unit Structural Scanner > --- WEAPON (2) ------- Light Assault Rifle Battle Cannon > --- INVENTORY (20) --- Ion Engine Improved Heat Sink Medium Storage Unit Medium Matter Pod (100) Improved Terrain Scanner Seismic Detector Weapon Shielding Light Armor Plating Light Armor Plating Scrap Shield Hacking Suite Small Laser Subdweller Laser Subdweller Beam Cannon Grenade Launcher Plasma Cutter Multitool Scrap Shield Fragment (47) Scrap Shield Fragment (46) Peak State ------------ > --- POWER ------------ Subdweller Power Source > --- PROPULSION ------- Light Treads Subdweller Monowheel > --- UTILITY ---------- High-capacity Storage Unit Light Armor Plating > --- WEAPON ----------- Subdweller Beam Cannon Battle Cannon > --- INVENTORY -------- Ion Engine Improved Heat Sink Medium Storage Unit Medium Matter Pod Structural Scanner Improved Terrain Scanner Seismic Detector Weapon Shielding Light Armor Plating Scrap Shield Hacking Suite Small Laser Subdweller Laser Light Assault Rifle Grenade Launcher Plasma Cutter Scrap Shield Fragment Scrap Shield Fragment Scrap Shield Fragment [Rating: 14] Favorites ----------- Power Ion Engine Engine Ion Engine Propulsion Light Treads Treads Light Treads Wheel Subdweller Monowheel Utility High-capacity Storage Unit Device Structural Scanner Storage High-capacity Storage Unit Protection Light Armor Plating Weapon Assault Rifle Energy Cannon Subdweller Beam Cannon Ballistic Gun Assault Rifle Ballistic Cannon Battle Cannon Launcher Grenade Launcher Special Weapon Multitool Build | -11 -10 -10 -10 ------- Run | Yrd Mat Min Sub Slots Evolved . | . . . . Power . | . . . . Propulsion . | . . . . Utility . | . . . . Weapon . | . . . . Parts Attached 28 | 9 7 3 9 Power 3 | 1 1 . 1 Engine 3 | 1 1 . 1 Core . | . . . . Reactor . | . . . . Propulsion 6 | 2 2 . 2 Treads 5 | 2 2 . 1 Leg . | . . . . Wheel 1 | . . . 1 Hover . | . . . . Flight . | . . . . Utility 8 | 3 4 . 1 Device 3 | 2 1 . . Storage 3 | 1 2 . . Processor . | . . . . Hackware . | . . . . Protection 2 | . 1 . 1 Artifact . | . . . . Weapon 11 | 3 . 3 5 Energy Gun . | . . . . Energy Cannon 1 | . . . 1 Ballistic Gun 6 | 3 . 2 1 Ballistic Cannon 1 | . . . 1 Launcher 1 | . . 1 . Special Weapon 2 | . . . 2 Impact Weapon . | . . . . Slashing Weapon . | . . . . Piercing Weapon . | . . . . Special Melee Weapon . | . . . . Unidentified Prototypes . | . . . . Parts Lost 4 | . . . 4 Power . | . . . . Propulsion 3 | . . . 3 Utility 1 | . . . 1 Weapon . | . . . . Highest Loss Streak 2 | . . . 2 To Critical Strikes . | . . . . Average Backups 13 | 1 9 15 17 Power . | . . 1 1 Propulsion . | . . . . Utility 8 | . 6 10 10 Weapon 2 | . 2 3 4 Tool/Special . | . . . . Unused Backups 17 | . 8 . 9 Power 2 | . 1 . 1 Propulsion 1 | . 1 . . Utility 7 | . 1 . 6 Weapon 7 | . 5 . 2 Tool/Special . | . . . . Average Slot Usage (%) 98 | . 100 100 92 Engine 14 | . 14 14 14 Treads 24 | . 28 28 13 Wheel 1 | . . . 7 Device 8 | . 12 5 7 Storage 14 | . 14 14 14 Protection 5 | . 1 8 6 Energy Cannon 1 | . . . 5 Ballistic Gun 23 | . 28 25 12 Ballistic Cannon 2 | . . . 10 Launcher 1 | . . 2 . Peak Build Rating 14 | 9 10 11 14 Average Rating 9 | 7 8 9 11 On Entrance 6 | . 9 9 9 Avg Prop Armor Cover (%) 10 | . . . 10 Naked Turns . | . . . . Heaviest Build 59 | 15 52 53 59 Greatest Support 40 | 40 40 40 40 Greatest Overweight (x) 2 | . 1 1 2 Average Overweight (x) . | . . 1 1 Largest Inventory Capacity 20 | 8 20 20 20 Average Capacity 16 | 7 10 20 20 Most Carried 20 | 3 14 17 20 Average Carried 13 | 1 9 15 19 Final Capacity 20 | 8 20 20 20 Final Carried 20 | 2 14 17 20 Class Distribution -------------------- 100% | Mutant Dominant Class ---------------- Mutant | -10/Materials Mutant | -10/Mines Mutant | -10/Subcaves Resources | -11 -10 -10 -10 ----------- Run | Yrd Mat Min Sub Matter Collected 1324 | 228 616 288 192 Remotely . | . . . . Salvage Created 1433 | 52 855 388 138 Parts 104 | 2 62 30 10 Haulers Intercepted 2 | . 2 . . Recyclers Shooed 4 | 1 1 2 . Parts Field Recycled . | . . . . Retrieved Matter . | . . . . Parts Self-Destructed 4 | . . . 4 Prevented . | . . . . Parts Restored . | . . . . Kills | -11 -10 -10 -10 ------- Run | Yrd Mat Min Sub Combat Hostiles Destroyed 33 | . 17 12 4 Guns 26 | . 17 9 . Cannons 4 | . . . 4 AOE 3 | . . 3 . Classes Destroyed 11 | 1 8 . 2 Worker 5 | . 4 1 . Tunneler 2 | 2 . . . Hauler 2 | . 2 . . Recycler 5 | . 2 3 . Mechanic 1 | . 1 . . Operator 1 | . 1 . . Watcher 2 | . 2 . . Swarmer 20 | . 8 12 . Grunt 9 | . 9 . . Artisan 1 | . . . 1 Subdweller 4 | . . . 4 Best Kill Streak 5 | 1 4 5 2 Combat Bots Only 3 | . 3 3 2 Max Kills in Single Turn 2 | 1 1 2 1 Gunslinging . | . . . . Exploded 2 | . . 2 . Melee . | . . . . Uniques/NPCs Destroyed . | . . . . Combat | -11 -10 -10 -10 -------- Run | Yrd Mat Min Sub Hostile Shots Fired 151 | . 87 41 23 Missed 47 | . 25 12 10 Hits 104 | . 62 29 13 Projectile 104 | . 62 29 13 Critical Strikes 1 | . 1 . . Damage Taken 1181 | . 635 281 265 Core 255 | . 154 55 46 Absorbed by Shields . | . . . . Core Remaining (%) 100 | 100 . . . Volleys Fired 188 | 7 73 30 78 Largest 2 | 2 2 2 2 Hottest 113 | 40 40 50 113 Shots Fired 309 | 14 147 53 95 Gun 217 | 14 147 51 5 Cannon 86 | . . . 86 Launcher 2 | . . 2 . Special 4 | . . . 4 Kinetic 264 | 14 147 51 52 Thermal 43 | . . . 43 Explosive 2 | . . 2 . Electromagnetic . | . . . . Robot Hit Streak 16 | 6 16 8 8 Robot Miss Streak 9 | 3 9 3 3 Penetration Max . | . . . . Secondary Targets 7 | . 2 5 . Max Gunslinging Chain 1 | . 1 1 . Shots Hit Robots 146 | 9 83 31 23 Core Hits 76 | 4 42 22 8 Critical Kills 1 | . 1 . . Critical Parts Destroyed . | . . . . Critical Strikes 2 | . 1 . 1 Destroy 1 | . 1 . . Blast 1 | . . . 1 Melee Attacks . | . . . . Impact . | . . . . Slashing . | . . . . Piercing . | . . . . Sneak Attacks . | . . . . Combat Hostiles . | . . . . Follow-up Attacks . | . . . . Damage Inflicted 2239 | 86 1091 570 492 Guns 1582 | 86 1091 378 27 Cannons 465 | . . . 465 Explosions 192 | . . 192 . Melee . | . . . . Ramming . | . . . . Kinetic 1826 | 86 1091 378 271 Thermal 221 | . . . 221 Explosive 192 | . . 192 . Electromagnetic . | . . . . Impact . | . . . . Slashing . | . . . . Piercing . | . . . . Highest Corruption 1 | . 1 1 1 Average Corruption 1 | . 1 1 1 Corruption Purged . | . . . . Corruption Blocked . | . . . . Effects 23 | . 4 13 6 Message Errors 5 | . 1 2 2 Matter Fused 11 | . 1 7 3 Heat Flow Errors 1 | . . 1 . Energy Discharges 1 | . 1 . . Data Loss (minor) 2 | . . 2 . Misfires 2 | . 1 1 . Weapon Failures 1 | . . . 1 Overload Shots . | . . . . Overflow Damage . | . . . . Projectiles . | . . . . Explosions . | . . . . Melee . | . . . . Knockbacks 3 | . . . 3 Impact . | . . . . Kinetic 3 | . . . 3 Secondary . | . . . . Self-Inflicted Damage 39 | . . 39 . Shots 1 | . . 1 . Rammed . | . . . . Targets Rammed . | . . . . Kicked . | . . . . Crushed . | . . . . Highest Temperature 222 | . 25 222 96 Average Temperature 32 | . 10 48 33 Received Heat Transfer 282 | . 264 . 18 Siege Activations . | . . . . Martial Activations . | . . . . Shielding Activations . | . . . . Robots Disrupted . | . . . . Combat Hostiles . | . . . . Robots Corrupted . | . . . . Combat Hostiles . | . . . . Parts Fried . | . . . . Impact Corruptions . | . . . . Robots Melted . | . . . . Combat Hostiles . | . . . . Parts Melted . | . . . . Heat Transferred 296 | . . . 296 Parts Sabotaged . | . . . . Parts Stolen . | . . . . Parts Stripped . | . . . . Power Chain Reactions . | . . . . Alert | -11 -10 -10 -10 ------- Run | Yrd Mat Min Sub Maximum Alert Level 1 | . 1 . . Low Security (%) 94 | 100 86 100 . Level 1 5 | . 13 . . Level 2 . | . . . . Level 3 . | . . . . Level 4 . | . . . . Level 5 . | . . . . High Security . | . . . . Max Security . | . . . . Peak Influence 240 | 5 240 157 . Initial 87 | . . 87 . Average 60 | . 98 40 . Influence Increases 892 | 10 566 316 . Destroy 0b10 Robot/C 580 | . 340 240 . Destroy 0b10 Robot/NC 95 | 10 60 25 . Destroy Leader 128 | . 88 40 . Successful Hack 16 | . 16 . . Destroy Structure 13 | . 2 11 . Lose Combat Pursuer 60 | . 60 . . Influence Decreases 892 | 10 342 540 . Entered New Map 137 | . . 137 . Time Decay 755 | 10 342 403 . Squads Dispatched 4 | . 4 . . Investigation 3 | . 3 . . Extermination . | . . . . Reinforcement 1 | . 1 . . Assault . | . . . . Garrison . | . . . . Intercept . | . . . . Searches Triggered . | . . . . Construction Impeded . | . . . . Haulers Reinforced . | . . . . Active Scanning Responses . | . . . . Cargo Convoy Interrupts . | . . . . Stealth | -11 -10 -10 -10 --------- Run | Yrd Mat Min Sub Distress Signals . | . . . . Communications Jammed . | . . . . Distress Signals . | . . . . Times Spotted 47 | . 31 11 5 Peak Tracking Total 6 | . 6 3 2 Tactical Retreats 2 | . 2 . . Traps | -11 -10 -10 -10 ------- Run | Yrd Mat Min Sub Traps Triggered 1 | . 1 . . Indirectly . | . . . . Trap Hack Attempts . | . . . . Triggered . | . . . . Disarmed . | . . . . Reprogrammed . | . . . . Reused . | . . . . Traps Extracted . | . . . . Installed . | . . . . Triggered . | . . . . Machines | -11 -10 -10 -10 ---------- Run | Yrd Mat Min Sub Machines Disabled . | . . . . Max in Single Turn . | . . . . Machines Repaired . | . . . . Machines Dismantled . | . . . . Machines Sabotaged . | . . . . Overloaded Fab Kills . | . . . . Hacking | -11 -10 -10 -10 --------- Run | Yrd Mat Min Sub Machines Accessed 7 | . 7 . . Terminals 5 | . 5 . . Fabricators . | . . . . Repair Stations 1 | . 1 . . Recycling Units 1 | . 1 . . Scanalyzers . | . . . . Garrison Access . | . . . . Total Hacks 21 | . 21 . . Successful 13 | . 13 . . Failed 8 | . 8 . . Catastrophic 1 | . 1 . . Database Lockouts . | . . . . Manual 6 | . 6 . . Terminals 16 | . 16 . . Fabricators . | . . . . Repair Stations 2 | . 2 . . Recycling Units 3 | . 3 . . Scanalyzers . | . . . . Garrison Access . | . . . . Terminal Hacks 8 | . 8 . . Record 7 | . 7 . . Robot Analysis 1 | . 1 . . Fabricator Hacks . | . . . . Repair Station Hacks 2 | . 2 . . Scan Component 1 | . 1 . . Refit 1 | . 1 . . Recycling Unit Hacks 3 | . 3 . . Process 1 | . 1 . . Report Inventory 1 | . 1 . . Retrieve Matter 1 | . 1 . . Scanalyzer . | . . . . Garrison Access Hacks . | . . . . Unauthorized Hacks . | . . . . Terminals . | . . . . Fabricators . | . . . . Repair Stations . | . . . . Recycling Units . | . . . . Scanalyzers . | . . . . Garrison Access . | . . . . Data Cores Recovered . | . . . . Used . | . . . . Hacking Detections 7 | . 7 . . Full Trace Events 3 | . 3 . . Feedback Events 1 | . 1 . . Corruption 1 | . 1 . . Feedback Blocked . | . . . . Robot Schematics Acquired . | . . . . Robots Built . | . . . . Authchips . | . . . . Time . | . . . . Total Robot Build Rating . | . . . . Part Schematics Acquired . | . . . . Parts Built . | . . . . Authchips . | . . . . Time . | . . . . Total Part Build Rating . | . . . . Part Studies Acquired . | . . . . Parts Repaired . | . . . . Time . | . . . . Parts Recycled . | . . . . Recycled Matter 257 | . 257 . . Retrieved Matter 257 | . 257 . . Retrieved Components . | . . . . Parts Scanalyzed . | . . . . Part Schematics Acquired . | . . . . Parts Damaged . | . . . . Bothacking | -11 -10 -10 -10 ------------ Run | Yrd Mat Min Sub Used RIF Installer . | . . . . Robots Hacked . | . . . . Non-combat . | . . . . Combat . | . . . . Robot Hacks Applied . | . . . . Relay Couplers Released . | . . . . Fabnet Peak Effective % . | . . . . Robots Rewired . | . . . . Allies Hacked . | . . . . Hacks Repelled . | . . . . Allies | -11 -10 -10 -10 -------- Run | Yrd Mat Min Sub Total Allies . | . . . . Largest Group . | . . . . Highest-Rated Group . | . . . . Highest-Rated Ally . | . . . . Total Orders . | . . . . Ally Attacks . | . . . . Total Damage . | . . . . Kills . | . . . . Allies Corrupted . | . . . . Allies Melted . | . . . . Intel | -11 -10 -10 -10 ------- Run | Yrd Mat Min Sub Active Infowar (turns) 2469 | 148 1174 671 476 Terrain 551 | 113 33 405 . Structural 1088 | . 750 148 190 Seismic 830 | 35 391 118 286 Robot Analysis Total 1 | . 1 . . Derelict Logs Recovered 2 | . . 1 1 Drone Launches . | . . . . Drone Recoveries . | . . . . Exploration | -11 -10 -10 -10 ------------- Run | Yrd Mat Min Sub Turns Passed 4220 | 219 1345 1813 843 Spaces Moved 1617 | 76 573 621 347 Core 4 | 4 . . . Treads 1417 | 72 573 621 151 Legs . | . . . . Wheels 196 | . . . 196 Hover . | . . . . Flight . | . . . . Fastest Speed 50 | 50 160 240 130 Average Speed 196 | 154 165 240 178 Slowest Speed 320 | 160 240 240 320 Overloaded Moves . | . . . . Propulsion Burnouts . | . . . . Robots Hopped . | . . . . Potential Cave-ins . | . . . . Cave-ins Triggered . | . . . . Exploration Rate (%) 55 | 9 94 99 19 Regions Visited 3 Branch Regions 2 Pre-discovered Areas . | . . . . Known Exits Taken . | . . . . Unknown Exits Taken 3 | 1 1 1 . Scrap Searched 3 | . . 1 2 Spaces Dug 5 | . . . 5 Terrain Destroyed 22 | . . 11 11 Melee . | . . . . Projectile 11 | . . . 11 AOE 11 | . . 11 . Terrain Rammed . | . . . . Walls Destroyed . | . . . . Machines Disabled . | . . . . Actions | -11 -10 -10 -10 --------- Run | Yrd Mat Min Sub Total 2355 | 164 828 891 472 Wait 443 | 64 134 225 20 Move 1614 | 75 572 620 347 Hop . | . . . . Pick Up 43 | 9 22 4 8 Fast Attach 4 | . 2 . 2 Attach 10 | 7 . . 3 Detach . | . . . . Swap 29 | 2 8 11 8 Drop 24 | . 17 1 6 Fire 188 | 7 73 30 78 Melee . | . . . . Ram . | . . . . Kick . | . . . . Crush . | . . . . Escape Stasis . | . . . . Rewire . | . . . . Trap . | . . . . Miscellaneous . | . . . . Route ------- -11/Scrapyard -10/Materials (discovered 4 exits: [*Mat x3] / [*Min]) -10/Mines (discovered 3 exits: [*Mat x2] / [*Sub]) -10/Subcaves (discovered 1 exit: [*Mat]) History --------- Turn | Location | Event 29 | -11/Scrapyard | Discovered new exit (range 15) 220 | -11/Scrapyard | Entered Materials 315 | -10/Materials | Build established: Mutant 652 | -10/Materials | Discovered new exit (range 16) 867 | -10/Materials | Discovered new exit (range 7) 1201 | -10/Materials | Discovered new exit (range 14) 1333 | -10/Materials | Discovered new exit (range 16) 1366 | -10/Materials | Core integrity fell below 50% 1565 | -10/Materials | Entered Mines 1585 | -10/Mines | Discovered new exit (range 9) 1707 | -10/Mines | Learned Materials garrison access intel 2456 | -10/Mines | Core integrity fell below 20% 2751 | -10/Mines | Discovered new exit (range 11) 3355 | -10/Mines | Discovered new exit (range 9) 3378 | -10/Mines | Entered Subcaves 3719 | -10/Subcaves | Discovered new exit (range 10) 3909 | -10/Subcaves | A swath of the cavern ceiling suddenly collapsed 4221 | -10/Subcaves | Destroyed by KE-O9X(R) with Subdweller Laser Last Messages --------------- 03822_ 6R-BEV(R) knocked back. 03824_ Subatomizers dissect the Lgt. Assault Rifle. 03825_ 6R-BEV(R) destroyed. 03832_ Acquired 26 matter. 03834_ Acquired 7 matter. A swath of the cavern ceiling suddenly collapses. 03916_ System corrupted: Matter fused (-8). 03981_ Sub. Beam Cannon shoots sparks and powers down. 03983_ Dropped Broken Sub. Beam Cannon. 03987_ Acquired Broken Sub. Beam Cannon. 03988_ Dropped Scrap Shield Fragment. 03998_ 65-O61(u) cries out in pain. [Achievement: Art Critic] 03998_ 65-O61(u) destroyed. 04000_ Acquired 4 matter. 04004_ Acquired 21 matter. 04007_ Acquired Multitool. 04068_ FMB7&UM/GXKYH,NQNTO=PM 04215_ Acquired 13 matter. 04216_ KE-O9X(R): "LEAVESUB!" Map ----- +----------------------------------------------------+ | ?????????????????????????????????????????????????? | | ?????????????????????????????????????????????????? | | ?????????????????????????????????????????????????? | | ?????????????????????????????????????????????????? | | ?????????????????????????????????????????????????? | | ?????????????????????????????????????????????????? | | ?????????????????????????????????????????????????? | | ?????????????????????????????????????????????????? | | ?????????????????????????????????????????????????? | | ?????????????????????????????????????????????????? | | ?????????????????????????????????????????????????? | | ?????????????????????????????????????????????????? | | ?????????????????????????????????????????????????? | | ??????????????####???????????????????????????????? | | ?????????????#####???????????????????????????????? | | ?????????????### ??????????????????####?????????? | | ????????????? # ??????????????#######?????????? | | ????????????? ## ?????????????##### ##?????????? | | ??????????????### ##?????######## ###?????????? | | ???????????????## ####???#######" ##??????????? | | ??????????????### % ######## ### ##??????????? | | ?????????????#### % ###### " #####"#????????? | | ????????????#### ### #"#"#"###"????????? | | ????????????### % ### " ""#"""#"????????? | | ????????????## ###" #"##"###????????? | | ????????? R @ ####"""#" "#####??????? | | ????????? ## ### ####"###### #???? | | ????????? ## ### ## ### ""# #####???? | | ???????????? ## ?### ####""###" "#"##"###??? | | ????????????? ?### ####"""##"""""""#"##??? | | ???????????? ??### #""#""###""""""" ###??? | | ????????????? ????## " "#"#" "" ""# ##??? | | ????????????? ?????## ""##""# """ "## ##??? | | ????????????????????### ######### & # ##??? | | ????????????????????#################### " ##??? | | ?????????????????????########?????###### ##??? | | ????????????????????????????????????# ###?? | | ????????????????????????????????????### ##?? | | ?????????????????????????????????????#### ###? | | ?????????????????????????????????????####"# ##? | | ????????????????????????????????????????### ### | | ????????????????????????????????????????### # | | ?????????????????????????????????????????## # | | ???????????????????????????????????????### ## | | ???????????????????????????????????????# ## | | ???????????????????????????????????????## #? | | ????????????????????????????????????????## #? | | ????????????????????????????????????????## ## ##? | | ????????????????????????????????????????# ####?? | | ????????????????????????????????????????# #???? | +----------------------------------------------------+ Best States ------------- Heat Dissipation 25 Energy Generation 15 Energy Capacity 250 Matter Stores 300 Matter Capacity 300 Sight Range 16 Terrain Scan Range 16 Terrain Scan Density 10 Armor Coverage 150 Evasion (%) 40 Recoil Reduction 2 Item Schematics ----------------- None Robot Schematics ------------------ None Fabricated ------------ Nothing Repaired ---------- Nothing Studied --------- None Alien Tech Used ----------------- None Achievements -------------- Art Critic Challenges ------------ None Game ------ Seed OpticalExoskeletonBeam Manual? 0 Play Time 01:01:02 Cumulative 58.3 hours Start 2025.12.04 @ 22:19:07 End 2025.12.04 @ 23:36:36 Sessions 1 Manual Loads 0 Difficulty Rogue Special Mode None Game No. 27 Rogue 27 Adventurer 0 Explorer 0 Win Type - Total 0 Types 0/0/0/0/0/0/0/0/0/0 Lore% 18 Gallery% 35 Achievement% 23 Wizard Run 0 Options --------- Layout 0 ASCII 0 Keyboard 0 Movement Mouse Keybinds 1 Fullscreen 2 Font 24/Smallcaps Map View 76x50 Zoom Use 48% Tactical HUD 1 Map Filters NONE Filters NONE Steam 1 RUN: 9f7c92d4-5c4a-4346-8e6b-ae16920a3e05